fUST/lending_fUST_20251226
["ID","MTS","AMOUNT","RATE_DAILY","PERIOD"]
[399805089,1766687439979,-1242.65660038,6.606e-05,2]
[399805091,1766687439989,-500.0,6.606e-05,2]
[399805093,1766687440000,-154.38339962,6.606e-05,2]
[399805685,1766687446051,-2749.73446821,6.606e-05,2]
[399805687,1766687446061,-500.0,6.606e-05,2]
[399805689,1766687446073,-2904.11786783,6.606e-05,2]
[399805691,1766687446083,-2904.11786783,6.606e-05,2]
[399805693,1766687446094,-500.0,6.606e-05,2]
[399805695,1766687446104,-2904.11786783,6.606e-05,2]
[399805697,1766687446114,-500.0,6.606e-05,2]
[399805699,1766687446124,-2904.11786783,6.606e-05,2]
[399805701,1766687446134,-500.0,6.606e-05,2]
[399805703,1766687446144,-2904.11786783,6.606e-05,2]
[399805705,1766687446155,-500.0,6.606e-05,2]
[399805707,1766687446165,-2904.11786783,6.606e-05,2]
[399805709,1766687446175,-500.0,6.606e-05,2]
[399805710,1766687446184,-500.0,6.606e-05,2]
[399805712,1766687446195,-2904.11786783,6.606e-05,2]
[399805714,1766687446205,-500.0,6.606e-05,2]
[399805716,1766687446215,-500.0,6.606e-05,2]
[399805718,1766687446225,-2904.11786783,6.606e-05,2]
[399805720,1766687446235,-500.0,6.606e-05,2]
[399805722,1766687446244,-2904.11786783,6.606e-05,2]
[399805724,1766687446254,-500.0,6.606e-05,2]
[399805726,1766687446264,-2904.11786783,6.606e-05,2]
[399805728,1766687446283,-2904.11786783,6.606e-05,2]
[399805730,1766687446303,-2904.11786783,6.606e-05,2]
[399805732,1766687446313,-2904.11786783,6.606e-05,2]
[399805734,1766687446323,-2904.11786783,6.606e-05,2]
[399805736,1766687446334,-2904.11786783,6.606e-05,2]
[399805738,1766687446344,-2904.11786783,6.606e-05,2]
[399805739,1766687446354,-2904.11786783,6.606e-05,2]
[399805742,1766687446364,-2904.11786783,6.606e-05,2]
[399805743,1766687446374,-2904.11786783,6.606e-05,2]
[399805745,1766687446383,-2871.54274362,6.606e-05,2]
[399805747,1766687446396,-32.57512421,6.606e-05,2]
[399805749,1766687446406,-2904.11786783,6.606e-05,2]
[399805751,1766687446417,-2904.11786783,6.606e-05,2]
[399805753,1766687446426,-2904.11786783,6.606e-05,2]
[399805755,1766687446435,-2904.11786783,6.606e-05,2]
[399805757,1766687446444,-2904.11786783,6.606e-05,2]
[399805759,1766687446455,-2904.11786783,6.606e-05,2]
[399805761,1766687446464,-2904.11786783,6.606e-05,2]
[399805763,1766687446474,-2904.11786783,6.606e-05,2]
[399805765,1766687446484,-2904.11786783,6.606e-05,2]
[399805767,1766687446493,-2904.11786783,6.606e-05,2]
[399805768,1766687446504,-2904.11786783,6.606e-05,2]
[399805770,1766687446514,-2904.11786783,6.606e-05,2]
[399805772,1766687446524,-2904.11786783,6.606e-05,2]
[399805774,1766687446534,-2904.11786783,6.606e-05,2]
[399805776,1766687446544,-2904.11786783,6.606e-05,2]
[399805778,1766687446554,-2904.11786783,6.606e-05,2]
[399805780,1766687446564,-2904.11786783,6.606e-05,2]
[399805782,1766687446574,-2904.11786783,6.606e-05,2]
[399805784,1766687446584,-2904.11786783,6.606e-05,2]
[399805786,1766687446594,-2904.11786783,6.606e-05,2]
[399805787,1766687446604,-2904.11786783,6.606e-05,2]
[399805788,1766687446613,-2904.11786783,6.606e-05,2]
[399805789,1766687446624,-2904.11786783,6.606e-05,2]
[399805790,1766687446634,-2904.11786783,6.606e-05,2]
[399805791,1766687446644,-2904.11786783,6.606e-05,2]
[399805792,1766687446654,-2904.11786783,6.606e-05,2]
[399805793,1766687446664,-2904.11786783,6.606e-05,2]
[399805794,1766687446675,-2904.11786783,6.606e-05,2]
[399805795,1766687446685,-2904.11786783,6.606e-05,2]
[399805796,1766687446695,-2904.11786783,6.606e-05,2]
[399805797,1766687446705,-2904.11786783,6.606e-05,2]
[399805798,1766687446715,-2904.11786783,6.606e-05,2]
[399805799,1766687446724,-2904.11786783,6.606e-05,2]
[399805800,1766687446734,-2904.11786783,6.606e-05,2]
[399805801,1766687446744,-2904.11786783,6.606e-05,2]
[399805802,1766687446754,-2904.11786783,6.606e-05,2]
[399805803,1766687446764,-2904.11786783,6.606e-05,2]
[399805804,1766687446774,-499.99999999,6.606e-05,2]
[399805805,1766687446784,-2841.88677065,6.606e-05,2]
[399805806,1766687446794,-2835.57196167,6.606e-05,2]
[399806368,1766687502965,421.4747805,0.00032876,120]
[399806370,1766687679161,150.0,0.00032877,120]
[399806371,1766687953659,265.78381887,0.0003,120]
[399806372,1766688128661,5000.0,6e-05,10]
[399806373,1766688151378,5000.0,6e-05,10]
[399806376,1766688486643,1007.7626999,4.341e-05,2]
[399806377,1766688589200,-5000.0,4.925e-05,2]
[399806378,1766688618026,500.0,0.00032876,120]
[399806379,1766688625967,-3800.0,4.925e-05,2]
[399806394,1766688631901,-440.41335325,4.925e-05,2]
[399806395,1766688631953,-759.58664675,4.925e-05,2]
[399806396,1766688631963,-150.0,4.975e-05,2]
[399806397,1766688631973,-154.34,5e-05,2]
[399806398,1766688631983,-300.0,5.304e-05,2]
[399806399,1766688631993,-300.0,5.304e-05,2]
[399806400,1766688632003,-300.0,5.304e-05,2]
[399806401,1766688632013,-1200.0,5.304e-05,2]
[399806402,1766688632023,-157.58409992,5.305e-05,2]
[399806403,1766688632034,-500.0,5.305e-05,2]
[399806404,1766688632044,-298.22760697,5.305e-05,2]
[399806405,1766688632054,-500.0,5.305e-05,2]
[399806406,1766688632065,-500.0,5.305e-05,2]
[399806407,1766688632074,-500.0,5.305e-05,2]
[399806408,1766688632085,-604.54529154,5.305e-05,2]
[399806409,1766688632095,-500.0,5.305e-05,2]
[399806410,1766688632105,-500.0,5.305e-05,2]
[399806412,1766688632115,-500.0,5.305e-05,2]
[399806414,1766688632125,-500.0,5.305e-05,2]
[399806416,1766688632134,-487.39155534,5.305e-05,2]
[399806418,1766688632146,-12.60844466,5.305e-05,2]
[399806420,1766688632155,-500.0,5.305e-05,2]
[399806422,1766688632165,-234.41147579,5.305e-05,2]
[399806423,1766688632178,-265.58852421,5.305e-05,2]
[399806424,1766688632188,-320.97368466,5.305e-05,2]
[399806425,1766688632200,-179.02631534,5.305e-05,2]
[399806426,1766688632210,-644.49246251,5.305e-05,2]
[399806427,1766688632221,-500.0,5.305e-05,2]
[399806428,1766688632230,-500.0,5.305e-05,2]
[399806429,1766688632240,-500.0,5.305e-05,2]
[399806430,1766688632250,-500.0,5.305e-05,2]
[399806431,1766688632260,-500.0,5.305e-05,2]
[399806432,1766688632269,-500.0,5.305e-05,2]
[399806433,1766688632279,-183.09030602,5.305e-05,2]
[399806434,1766688632293,-316.90969398,5.305e-05,2]
[399806435,1766688632303,-500.0,5.305e-05,2]
[399806436,1766688632313,-500.0,5.305e-05,2]
[399806437,1766688632323,-179.98008452,5.305e-05,2]
[399806438,1766688632335,-320.01991548,5.305e-05,2]
[399806439,1766688632345,-323.7514892,5.305e-05,2]
[399806456,1766688638200,-176.2485108,5.305e-05,2]
[399806457,1766688638212,-500.0,5.305e-05,2]
[399806458,1766688638223,-500.0,5.305e-05,2]
[399806459,1766688638235,-615.24370471,5.305e-05,2]
[399806460,1766688638245,-615.24370471,5.305e-05,2]
[399806461,1766688638255,-615.24370471,5.305e-05,2]
[399806462,1766688638266,-615.24370471,5.305e-05,2]
[399806463,1766688638276,-615.24370471,5.305e-05,2]
[399806464,1766688638286,-615.24370471,5.305e-05,2]
[399806465,1766688638297,-615.24370471,5.305e-05,2]
[399806466,1766688638308,-615.24370471,5.305e-05,2]
[399806467,1766688638318,-615.24370471,5.305e-05,2]
[399806468,1766688638329,-615.24370471,5.305e-05,2]
[399806469,1766688638339,-287.62387276,5.305e-05,2]
[399806470,1766688638352,-327.61983195,5.305e-05,2]
[399806471,1766688638362,-189.80892824,5.305e-05,2]
[399806472,1766688638375,-356.01301693,5.305e-05,2]
[399806474,1766688638477,-69.42175954,5.305e-05,2]
[399806475,1766688638488,-615.24370471,5.305e-05,2]
[399806476,1766688638498,-615.24370471,5.305e-05,2]
[399806477,1766688638509,-615.24370471,5.305e-05,2]
[399806478,1766688638519,-615.24370471,5.305e-05,2]
[399806479,1766688638530,-615.24370471,5.305e-05,2]
[399806480,1766688638542,-615.24370471,5.305e-05,2]
[399806481,1766688638553,-615.24370471,5.305e-05,2]
[399806482,1766688638564,-615.24370471,5.305e-05,2]
[399806483,1766688638576,-615.24370471,5.305e-05,2]
[399806484,1766688638848,-615.24370471,5.305e-05,2]
[399806485,1766688638918,-615.24370471,5.305e-05,2]
[399806486,1766688638929,-615.24370471,5.305e-05,2]
[399806487,1766688638941,-615.24370471,5.305e-05,2]
[399806488,1766688638951,-615.24370471,5.305e-05,2]
[399806489,1766688638961,-615.24370471,5.305e-05,2]
[399806490,1766688638971,-615.24370471,5.305e-05,2]
[399806491,1766688638983,-615.24370471,5.305e-05,2]
[399806492,1766688638994,-615.24370471,5.305e-05,2]
[399806493,1766688639004,-615.24370471,5.305e-05,2]
[399806494,1766688639014,-615.24370471,5.305e-05,2]
[399806495,1766688639024,-615.24370471,5.305e-05,2]
[399806496,1766688639036,-615.24370471,5.305e-05,2]
[399806497,1766688639047,-615.24370471,5.305e-05,2]
[399806498,1766688639057,-615.24370471,5.305e-05,2]
[399806499,1766688639072,-615.24370471,5.305e-05,2]
[399806500,1766688639085,-615.24370471,5.305e-05,2]
[399806501,1766688639099,-615.24370471,5.305e-05,2]
[399806502,1766688639117,-615.24370471,5.305e-05,2]
[399806503,1766688639127,-615.24370471,5.305e-05,2]
[399806504,1766688639137,-615.24370471,5.305e-05,2]
[399806505,1766688639148,-615.24370471,5.305e-05,2]
[399806506,1766688639158,-615.24370471,5.305e-05,2]
[399806507,1766688639168,-615.24370471,5.305e-05,2]
[399806508,1766688639178,-615.24370471,5.305e-05,2]
[399806509,1766688639190,-615.24370471,5.305e-05,2]
[399806510,1766688639208,-615.24370471,5.305e-05,2]
[399806511,1766688639219,-615.24370471,5.305e-05,2]
[399806512,1766688639231,-615.24370471,5.305e-05,2]
[399806513,1766688639241,-593.27071526,5.305e-05,2]
[399806514,1766688639252,-593.27071526,5.305e-05,2]
[399806515,1766688639263,-593.27071526,5.305e-05,2]
[399806516,1766688639273,-593.27071526,5.305e-05,2]
[399806517,1766688639284,-593.27071526,5.305e-05,2]
[399806518,1766688639294,-593.27071526,5.305e-05,2]
[399806519,1766688639304,-593.27071526,5.305e-05,2]
[399806520,1766688639315,-593.27071526,5.305e-05,2]
[399806521,1766688639326,-593.27071526,5.305e-05,2]
[399806522,1766688639335,-593.27071526,5.305e-05,2]
[399806523,1766688639346,-593.27071526,5.305e-05,2]
[399806524,1766688639355,-593.27071526,5.305e-05,2]
[399806525,1766688639365,-593.27071526,5.305e-05,2]
[399806526,1766688639375,-593.27071526,5.305e-05,2]
[399806527,1766688639385,-922.86555703,5.305e-05,2]
[399806528,1766688639395,-1200.0,5.305e-05,2]
[399806529,1766688639405,-229.35877484,5.305e-05,2]
[399806530,1766688639415,-100968.8789784,5.309e-05,2]
[399806531,1766688639425,-150.0,5.352e-05,2]
[399806532,1766688639435,-150.0,5.607e-05,2]
[399806533,1766688639445,-206.84,5.861e-05,2]
[399806534,1766688639455,-154.34,6.1e-05,2]
[399806535,1766688639465,-275.78,6.116e-05,2]
[399806536,1766688639475,-344.73,6.371e-05,2]
[399806537,1766688639486,-455.2134776,6.606e-05,2]
[399806538,1766688639496,-413.67,6.626e-05,2]
[399806539,1766688639507,-482.62,6.881e-05,2]
[399806541,1766688639517,-177.0,6.975e-05,2]
[399806543,1766688639526,-154.34,7.1e-05,2]
[399806544,1766688639536,-551.56,7.136e-05,2]
[399806545,1766688639547,-455.2134776,7.332e-05,2]
[399806546,1766688639556,-620.51,7.39e-05,2]
[399806547,1766688639566,-689.45,7.645e-05,2]
[399806548,1766688639576,-455.2134776,8.058e-05,2]
[399806549,1766688639586,-154.34,8.2e-05,2]
[399806550,1766688639596,-455.2134776,8.785e-05,2]
[399806551,1766688639606,-151.76552736,8.975e-05,2]
[399806552,1766688639616,-154.34,9.3e-05,2]
[399806553,1766688639630,-1687.20648178,9.307e-05,2]
[399806554,1766688639642,-154.34,0.000104,2]
[399806555,1766688639652,-423.89165063,0.00010618,2]
[399806556,1766688639662,-684.7229129,0.00010959,2]
[399806557,1766688639672,-500.0,0.00010959,2]
[399806558,1766688639682,-219.20223766,0.00010959,2]
[399806559,1766688639692,-500.0,0.00010959,2]
[399806560,1766688639703,-500.0,0.00010959,2]
[399806561,1766688639713,-500.0,0.00010959,2]
[399806562,1766688639724,-500.0,0.00010959,2]
[399806563,1766688639734,-154.34,0.000114,2]
[399806564,1766688639744,-1041.66666667,0.00012317,2]
[399806565,1766688639754,-185.71,0.00012329,2]
[399806566,1766688639764,-154.76,0.00012329,2]
[399806567,1766688639774,-11631.06875062,0.000125,2]
[399806568,1766688639784,-154.34,0.000125,2]
[399806569,1766688639795,-490.10740353,0.00012584,2]
[399806570,1766688639805,-230.0,0.00012849,3]
[399806571,1766688639815,-500.0,0.00013273,2]
[399806572,1766688639824,-154.34,0.000136,2]
[399806573,1766688639835,-1000.0,0.00013699,2]
[399806574,1766688639845,-1311.921437,0.00013699,2]
[399806575,1766688639855,-200.0,0.00013699,2]
[399806576,1766688639865,-500.0,0.00013699,2]
[399806577,1766688639876,-500.0,0.00013699,2]
[399806578,1766688639886,-500.0,0.00013699,2]
[399806579,1766688639897,-587.52416976,0.00013699,7]
[399806580,1766688639906,-1000.0,0.00013821,2]
[399806581,1766688639917,-2160.0,0.00013938,2]
[399806582,1766688639927,-172.0,0.00013945,3]
[399806584,1766688639937,-1000.0,0.00014247,2]
[399806585,1766688639947,-1000.0,0.00014247,2]
[399806587,1766688639957,-1000.0,0.00014247,2]
[399806588,1766688639967,-1500.0,0.00014368,2]
[399806589,1766688639978,-154.34,0.000146,2]
[399806590,1766688639987,-1500.0,0.00014795,2]
[399806591,1766688639997,-1500.0,0.00014795,2]
[399806592,1766688640007,-1275.53785009,0.00014795,2]
[399806593,1766688640017,-903.516935,0.00014916,2]
[399806594,1766688640027,-1000.0,0.00015,2]
[399806595,1766688640036,-173.0,0.00015041,3]
[399806596,1766688640046,-560.052952,0.00015068,2]
[399806597,1766688640056,-400.0,0.00015068,2]
[399806598,1766688640067,-2000.0,0.00015342,2]
[399806599,1766688640077,-2000.0,0.00015342,2]
[399806600,1766688640087,-1181.94775477,0.00015591,2]
[399806601,1766688640097,-154.49216669,0.00015669,2]
[399806602,1766688640107,-154.34,0.000157,2]
[399806603,1766688640118,-2500.0,0.0001589,2]
[399806604,1766688640129,-2500.0,0.0001589,2]
[399806605,1766688640139,-174.0,0.00016137,3]
[399806606,1766688640149,-160.0,0.00016329,2]
[399806607,1766688640159,-718.21291429,0.00016397,2]
[399806608,1766688640169,-406.05017873,0.00016411,2]
[399806609,1766688640179,-333.7,0.00016438,2]
[399806610,1766688640188,-500.0,0.00016438,2]
[399806611,1766688640198,-500.0,0.00016438,2]
[399806612,1766688640207,-500.0,0.00016438,2]
[399806613,1766688640217,-500.0,0.00016438,2]
[399806614,1766688640227,-500.0,0.00016438,2]
[399806615,1766688640237,-500.0,0.00016438,2]
[399806616,1766688640247,-500.0,0.00016438,2]
[399806617,1766688640257,-500.0,0.00016438,2]
[399806618,1766688640267,-500.0,0.00016438,2]
[399806619,1766688640278,-500.0,0.00016438,2]
[399806620,1766688640288,-500.0,0.00016438,2]
[399806621,1766688640315,-500.0,0.00016438,2]
[399806622,1766688640328,-500.0,0.00016438,2]
[399806623,1766688640339,-500.0,0.00016438,2]
[399806625,1766688640351,-500.0,0.00016438,2]
[399806627,1766688640364,-500.0,0.00016438,2]
[399806629,1766688640377,-500.0,0.00016438,2]
[399806631,1766688640389,-500.0,0.00016438,2]
[399806633,1766688640400,-500.0,0.00016438,2]
[399806635,1766688640410,-500.0,0.00016438,2]
[399806637,1766688640420,-500.0,0.00016438,2]
[399806639,1766688640431,-500.0,0.00016438,2]
[399806641,1766688640442,-500.0,0.00016438,2]
[399806643,1766688640453,-368.94148768,0.00016438,2]
[399806645,1766688640463,-500.0,0.00016438,2]
[399806647,1766688640474,-500.0,0.00016438,2]
[399806649,1766688640485,-500.0,0.00016438,2]
[399806651,1766688640496,-500.0,0.00016438,2]
[399806653,1766688640508,-500.0,0.00016438,2]
[399806656,1766688640519,-500.0,0.00016438,2]
[399806658,1766688640530,-500.0,0.00016438,2]
[399806660,1766688640541,-500.0,0.00016438,2]
[399806662,1766688640551,-500.0,0.00016438,2]
[399806664,1766688640562,-500.0,0.00016438,2]
[399806666,1766688640573,-500.0,0.00016438,2]
[399806668,1766688640583,-500.0,0.00016438,2]
[399806670,1766688640594,-500.0,0.00016438,2]
[399806672,1766688640604,-500.0,0.00016438,2]
[399806674,1766688640614,-500.0,0.00016438,2]
[399806676,1766688640626,-500.0,0.00016438,2]
[399806678,1766688640638,-500.0,0.00016438,2]
[399806680,1766688640655,-500.0,0.00016438,2]
[399806682,1766688640675,-500.0,0.00016438,2]
[399806684,1766688640686,-500.0,0.00016438,2]
[399806686,1766688640697,-500.0,0.00016438,2]
[399806688,1766688640707,-500.0,0.00016438,2]
[399806690,1766688640719,-500.0,0.00016438,2]
[399806692,1766688640729,-500.0,0.00016438,2]
[399806694,1766688640740,-500.0,0.00016438,2]
[399806696,1766688640751,-500.0,0.00016438,2]
[399806698,1766688640763,-500.0,0.00016438,2]
[399806700,1766688640773,-500.0,0.00016438,2]
[399806702,1766688640784,-500.0,0.00016438,2]
[399806705,1766688640796,-500.0,0.00016438,2]
[399806707,1766688640807,-500.0,0.00016438,2]
[399806709,1766688640818,-500.0,0.00016438,2]
[399806711,1766688640828,-500.0,0.00016438,2]
[399806713,1766688640839,-500.0,0.00016438,2]
[399806715,1766688640849,-500.0,0.00016438,2]
[399806717,1766688640860,-500.0,0.00016438,2]
[399806719,1766688640870,-524.32683196,0.00016438,2]
[399806721,1766688640880,-500.0,0.00016438,2]
[399806723,1766688640891,-500.0,0.00016438,2]
[399806725,1766688640902,-500.0,0.00016438,2]
[399806727,1766688640911,-500.0,0.00016438,2]
[399806729,1766688640921,-500.0,0.00016438,2]
[399806731,1766688640932,-500.0,0.00016438,2]
[399806733,1766688640942,-500.0,0.00016438,2]
[399806735,1766688640953,-500.0,0.00016438,2]
[399806737,1766688640964,-500.0,0.00016438,2]
[399806739,1766688640974,-500.0,0.00016438,2]
[399806741,1766688640984,-500.0,0.00016438,2]
[399806743,1766688640995,-500.0,0.00016438,2]
[399806745,1766688641005,-500.0,0.00016438,2]
[399806748,1766688641015,-500.0,0.00016438,2]
[399806749,1766688641026,-500.0,0.00016438,2]
[399806752,1766688641036,-600.0,0.00016438,2]
[399806754,1766688641047,-3000.0,0.00016438,2]
[399806756,1766688641056,-3000.0,0.00016438,2]
[399806758,1766688641066,-200.0,0.00016473,2]
[399806760,1766688641077,-1850.60092648,0.000166,2]
[399806762,1766688641087,-686.75670156,0.00016601,2]
[399806764,1766688641098,-333.7,0.00016712,2]
[399806766,1766688641108,-154.34,0.000168,2]
[399806768,1766688641119,-289.0,0.00016813,2]
[399806770,1766688641128,-1192.0,0.00016867,2]
[399806772,1766688641138,-260.0,0.00016877,2]
[399806774,1766688641148,-1192.0,0.00016878,2]
[399806776,1766688641158,-1192.0,0.00016894,2]
[399806778,1766688641168,-1192.0,0.00016936,2]
[399806780,1766688641179,-1192.0,0.00016969,2]
[399806782,1766688641189,-333.7,0.00016986,2]
[399806784,1766688641200,-3500.0,0.00016986,2]
[399806787,1766688641210,-3500.0,0.00016986,2]
[399806789,1766688641220,-60712.00547681,0.0001699,2]
[399806808,1766688641406,-272.71,0.0001699,2]
[399806811,1766688641418,-11912.80655445,0.0001699,2]
[399806813,1766688641431,-27102.47796874,0.0001699,2]
[399806815,1766688641441,-1192.0,0.00017005,2]
[399806817,1766688641450,-1192.0,0.00017087,2]
[399806819,1766688641460,-1192.0,0.00017113,2]
[399806821,1766688641470,-1192.0,0.00017168,2]
[399806823,1766688641480,-1192.0,0.00017176,2]
[399806825,1766688641490,-176.0,0.00017233,3]
[399806827,1766688641500,-333.7,0.0001726,2]
[399806829,1766688641510,-1192.0,0.00017271,2]
[399806831,1766688641520,-585.52027074,0.00017318,2]
[399806833,1766688641529,-1192.0,0.00017386,2]
[399806835,1766688641540,-150.0,0.00017397,2]
[399806837,1766688641551,-360.0,0.00017424,2]
[399806839,1766688641560,-1192.0,0.00017498,2]
[399806841,1766688641570,-150.0,0.00017534,2]
[399806843,1766688641579,-333.7,0.00017534,2]
[399806845,1766688641589,-4000.0,0.00017534,2]
[399806847,1766688641599,-4000.0,0.00017534,2]
[399806849,1766688641609,-1192.0,0.00017548,2]
[399806851,1766688641619,-589.81097801,0.00017651,2]
[399806853,1766688641636,-263.47373267,0.00017651,2]
[399806855,1766688641647,-338.71528932,0.00017651,2]
[399806857,1766688641657,-150.0,0.00017671,2]
[399806859,1766688641667,-11.27980176,0.00017685,2]
[399806861,1766688641679,-698.71128851,0.00017685,2]
[399806864,1766688641691,-90.00890973,0.00017685,2]
[399806866,1766688641702,-1473.19474389,0.000178,3]
[399806868,1766688641714,-1326.66510949,0.000178,3]
[399807038,1766688643357,-2051.67024572,7.978e-05,2]
[399807041,1766688643369,-377.95093046,7.978e-05,2]
[399807043,1766688643382,-2570.37882382,7.978e-05,2]
[399807045,1766688643392,-15488.78500185,0.000178,3]
[399807047,1766688643405,-504.65823703,0.000178,3]
[399807049,1766688643417,-8566.3774352,0.000178,3]
[399807052,1766688643432,-414.32248862,0.000178,3]
[399807054,1766688643444,-23268.87331277,0.000178,3]
[399807056,1766688643456,-632.66233801,0.000178,3]
[399807058,1766688643468,-445.0,0.000178,3]
[399807291,1766688646138,-197879.46133314,0.000178,3]
[399807293,1766688646148,-253.1602987,0.00017808,2]
[399807295,1766688646158,-333.7,0.00017808,2]
[399807296,1766688646167,-800.0,0.00017808,2]
[399807298,1766688646177,-278.40277077,0.00017842,2]
[399807300,1766688646188,-1192.0,0.00017887,2]
[399807302,1766688646198,-1104.63030921,0.000179,2]
[399807304,1766688646211,-3873.62963021,0.000179,5]
[399807306,1766688646220,-154.34,0.000179,2]
[399807308,1766688646230,-1192.0,0.00017963,2]
[399807310,1766688646239,-460.0,0.00017972,2]
[399807312,1766688646250,-215.0,0.00018,5]
[399807314,1766688646259,-28325.69573936,0.00018,2]
[399807316,1766688646269,-1249.52287216,0.00018,30]
[399807318,1766688646279,-161410.61631606,0.00018,2]
[399807320,1766688646289,-7773.52868892,0.00018,2]
[399807322,1766688646301,-381.0,0.00018,2]
[399807963,1766688864161,200.0,0.00032876,120]
[399807964,1766688865150,200.0,0.00032876,120]
[399807966,1766689186844,624.93,0.00032876,120]
[399807967,1766689187192,624.93,0.00032876,120]
[399807968,1766689187404,624.93,0.00032876,120]
[399807969,1766689187641,624.93,0.00032876,120]
[399807970,1766689187870,624.93,0.00032876,120]
[399807971,1766689188104,624.93,0.00032876,120]
[399807972,1766689188344,624.93,0.00032876,120]
[399807973,1766689188578,624.93,0.00032876,120]
[399807974,1766689188808,624.93,0.00032876,120]
[399807975,1766689189056,624.93,0.00032876,120]
[399807976,1766689189291,624.93,0.00032876,120]
[399807977,1766689189510,624.93,0.00032876,120]
[399807978,1766689189735,624.93,0.00032876,120]
[399807979,1766689189969,624.93,0.00032876,120]
[399807980,1766689190197,624.93,0.00032876,120]
[399807981,1766689190435,624.93,0.00032876,120]
[399807982,1766689190666,624.93,0.00032876,120]
[399807983,1766689190920,624.93,0.00032876,120]
[399807984,1766689191202,624.93,0.00032876,120]
[399807985,1766689191452,624.93,0.00032876,120]
[399807986,1766689191683,624.93,0.00032876,120]
[399807987,1766689191949,624.93,0.00032876,120]
[399807988,1766689192204,624.93,0.00032876,120]
[399807989,1766689192396,625.11029915,0.00032876,120]
[399807994,1766689302626,518.0,0.00032876,120]
[399808026,1766689832575,-278.19749666,4.975e-05,2]
[399808027,1766689832588,-221.80250334,4.975e-05,2]
[399808028,1766689832599,-171.94450845,4.975e-05,2]
[399808029,1766689832611,-149.55314329,4.975e-05,2]
[399808030,1766689832622,-222.60846519,4.981e-05,2]
[399808031,1766689832633,-45.0034257,5e-05,2]
[399808032,1766689832645,-109.3265743,5e-05,2]
[399808033,1766689832656,-154.33,7.1e-05,2]
[399808034,1766689832666,-150.0,7.174e-05,2]
[399808035,1766689832676,-150.0,7.427e-05,2]
[399808036,1766689832687,-150.0,7.78e-05,2]
[399808037,1766689832697,-150.0,8.134e-05,2]
[399808038,1766689832707,-150.0,8.488e-05,2]
[399808039,1766689832717,-64.43258712,8.756e-05,2]
[399808053,1766689838317,-360.44890996,8.756e-05,2]
[399808054,1766689838333,-129.82777854,8.841e-05,2]
[399808055,1766689838350,-20.17222146,8.841e-05,2]
[399808056,1766689838364,-150.0,9.195e-05,2]
[399808057,1766689838377,-299.96227749,9.291e-05,2]
[399808058,1766689838390,-500.0,9.291e-05,2]
[399808059,1766689838403,-500.0,9.291e-05,2]
[399808060,1766689838417,-500.0,9.291e-05,2]
[399808061,1766689838431,-500.0,9.291e-05,2]
[399808062,1766689838444,-500.0,9.291e-05,2]
[399808063,1766689838455,-500.0,9.291e-05,2]
[399808064,1766689838467,-500.0,9.291e-05,2]
[399808065,1766689838478,-500.0,9.291e-05,2]
[399808066,1766689838488,-500.0,9.291e-05,2]
[399808067,1766689838499,-500.0,9.291e-05,2]
[399808068,1766689838512,-500.0,9.291e-05,2]
[399808069,1766689838525,-500.0,9.291e-05,2]
[399808070,1766689838538,-500.0,9.291e-05,2]
[399808071,1766689838551,-500.0,9.291e-05,2]
[399808072,1766689838563,-500.0,9.291e-05,2]
[399808073,1766689838574,-242.36761436,9.291e-05,2]
[399808074,1766689838587,-500.0,9.291e-05,2]
[399808075,1766689838599,-500.0,9.291e-05,2]
[399808076,1766689838611,-500.0,9.291e-05,2]
[399808077,1766689838624,-500.0,9.291e-05,2]
[399808078,1766689838636,-614.51991137,9.291e-05,2]
[399808079,1766689838648,-500.0,9.291e-05,2]
[399808080,1766689838661,-500.0,9.291e-05,2]
[399808081,1766689838672,-500.0,9.291e-05,2]
[399808082,1766689838685,-500.0,9.291e-05,2]
[399808083,1766689838698,-500.0,9.291e-05,2]
[399808084,1766689838711,-300.0,9.291e-05,2]
[399808085,1766689838724,-300.0,9.291e-05,2]